{"text_format":"3","workbook":"xlsx","n_sheets":2,"sheets":["Opettajan luettelo","Luettelotiedot"],"not_rendered":{"defined_names":6},"read":"whole","date_system":"1900"}

{"sheet":"Opettajan luettelo","index":0,"n_rows":10,"n_cols":10,"rows_kept":10,"merged":[[0,1,0,2],[0,4,0,8],[2,9,6,9]]}
[null,"Opettajan luettelo",null,"Luettelotiedot","Tilan väriselite on tässä solussa: Ei aloitettu on normaali tyyli, Käynnissä on R = 91 G = 133 B = 49, Eräpäivä tänään on R = 118 G = 88 B = 0, Pidossa on R = 109 G = 66 B = 111, Valmis on yliviivattu, Peruutettu on R = 191 G = 191 B = 191 ja Vanhentunut on R = 191 G = 33 B = 28."]
[null,"KOHDE","LUOKKA","ALOITUSPÄIVÄ","MÄÄRÄPÄIVÄ","PÄIVIÄ JÄLJELLÄ","TILA","MUISTIINPANOT"]
[null,"Puhdista vetolaatikot","Toimisto",{"$f":"DATE(YEAR(TODAY()),MONTH(TODAY())-1,6)","v":"2018-04-06"},{"$f":"DATE(YEAR(TODAY()),MONTH(TODAY())-1,16)","v":"2018-04-16"},{"$f":"IFERROR(IF(COUNT(Luettelo[[#This Row],[ALOITUSPÄIVÄ]]:Luettelo[[#This Row],[MÄÄRÄPÄIVÄ]])<>2,\"\",IF(OR(Luettelo[[#This Row],[TILA]]=\"Valmis\",Luettelo[[#This Row],[TILA]]=\"Peruutettu\",Luettelo[[#This Row],[TILA]]=\"Pidossa\"),\"\",Luettelo[[#This Row],[MÄÄRÄPÄIVÄ]]-TODAY())),\"\")","v":""},"Valmis",null,null,"Tilaosittaja on tässä solussa. Jos haluat suodattaa luettelon tilan mukaan, valitse tila osittajasta. Pidä CTRL-näppäintä painettuna, kun haluat valita useita vaihtoehtoja."]
[null,"Järjestä tarrat","Tarvikkeet",{"$f":"DATE(YEAR(TODAY()),MONTH(TODAY())-1,11)","v":"2018-04-11"},{"$f":"DATE(YEAR(TODAY()),MONTH(TODAY())-1,21)","v":"2018-04-21"},{"$f":"IFERROR(IF(COUNT(Luettelo[[#This Row],[ALOITUSPÄIVÄ]]:Luettelo[[#This Row],[MÄÄRÄPÄIVÄ]])<>2,\"\",IF(OR(Luettelo[[#This Row],[TILA]]=\"Valmis\",Luettelo[[#This Row],[TILA]]=\"Peruutettu\",Luettelo[[#This Row],[TILA]]=\"Pidossa\"),\"\",Luettelo[[#This Row],[MÄÄRÄPÄIVÄ]]-TODAY())),\"\")","v":""},"Valmis"]
[null,"Lattiat mopattu ja vahattu","Muut",{"$f":"DATE(YEAR(TODAY()),MONTH(TODAY()-1),DAY(TODAY())-25)","v":"2018-04-14"},{"$f":"DATE(YEAR(TODAY()),MONTH(TODAY())-1,26)","v":"2018-04-26"},{"$f":"IFERROR(IF(COUNT(Luettelo[[#This Row],[ALOITUSPÄIVÄ]]:Luettelo[[#This Row],[MÄÄRÄPÄIVÄ]])<>2,\"\",IF(OR(Luettelo[[#This Row],[TILA]]=\"Valmis\",Luettelo[[#This Row],[TILA]]=\"Peruutettu\",Luettelo[[#This Row],[TILA]]=\"Pidossa\"),\"\",Luettelo[[#This Row],[MÄÄRÄPÄIVÄ]]-TODAY())),\"\")","v":""},"Valmis"]
[null,"Nimilaput luotu","Tarvikkeet",{"$f":"DATE(YEAR(TODAY()),MONTH(TODAY())-1,21)","v":"2018-04-21"},{"$f":"DATE(YEAR(TODAY()),MONTH(TODAY())-1,1)","v":"2018-04-01"},{"$f":"IFERROR(IF(COUNT(Luettelo[[#This Row],[ALOITUSPÄIVÄ]]:Luettelo[[#This Row],[MÄÄRÄPÄIVÄ]])<>2,\"\",IF(OR(Luettelo[[#This Row],[TILA]]=\"Valmis\",Luettelo[[#This Row],[TILA]]=\"Peruutettu\",Luettelo[[#This Row],[TILA]]=\"Pidossa\"),\"\",Luettelo[[#This Row],[MÄÄRÄPÄIVÄ]]-TODAY())),\"\")","v":""},"Pidossa"]
[null,"Arvosanat kirjallisille kausikokeille","Arviot",{"$f":"DATE(YEAR(TODAY()),MONTH(TODAY())-1,26)","v":"2018-04-26"},{"$f":"TODAY()-5","v":"2018-05-04"},{"$f":"IFERROR(IF(COUNT(Luettelo[[#This Row],[ALOITUSPÄIVÄ]]:Luettelo[[#This Row],[MÄÄRÄPÄIVÄ]])<>2,\"\",IF(OR(Luettelo[[#This Row],[TILA]]=\"Valmis\",Luettelo[[#This Row],[TILA]]=\"Peruutettu\",Luettelo[[#This Row],[TILA]]=\"Pidossa\"),\"\",Luettelo[[#This Row],[MÄÄRÄPÄIVÄ]]-TODAY())),\"\")","v":-5},"Vanhentunut"]
[null,"Sähköpostimuistutus lupalapuista ","Puhelut",{"$f":"DATE(YEAR(TODAY()),MONTH(TODAY()),1)","v":"2018-05-01"},{"$f":"TODAY()","v":"2018-05-09"},{"$f":"IFERROR(IF(COUNT(Luettelo[[#This Row],[ALOITUSPÄIVÄ]]:Luettelo[[#This Row],[MÄÄRÄPÄIVÄ]])<>2,\"\",IF(OR(Luettelo[[#This Row],[TILA]]=\"Valmis\",Luettelo[[#This Row],[TILA]]=\"Peruutettu\",Luettelo[[#This Row],[TILA]]=\"Pidossa\"),\"\",Luettelo[[#This Row],[MÄÄRÄPÄIVÄ]]-TODAY())),\"\")","v":""},"Peruutettu"]
[null,"Arvosanat suullisille raporteille","Toimisto",{"$f":"DATE(YEAR(TODAY()),MONTH(TODAY()),7)","v":"2018-05-07"},{"$f":"DATE(YEAR(TODAY()),MONTH(TODAY()),17)","v":"2018-05-17"},{"$f":"IFERROR(IF(COUNT(Luettelo[[#This Row],[ALOITUSPÄIVÄ]]:Luettelo[[#This Row],[MÄÄRÄPÄIVÄ]])<>2,\"\",IF(OR(Luettelo[[#This Row],[TILA]]=\"Valmis\",Luettelo[[#This Row],[TILA]]=\"Peruutettu\",Luettelo[[#This Row],[TILA]]=\"Pidossa\"),\"\",Luettelo[[#This Row],[MÄÄRÄPÄIVÄ]]-TODAY())),\"\")","v":8},"Käynnissä"]
[null,"Kynien teroittaminen","Tarvikkeet",{"$f":"DATE(YEAR(TODAY()),MONTH(TODAY()),11)","v":"2018-05-11"},{"$f":"DATE(YEAR(TODAY()),MONTH(TODAY()),10)","v":"2018-05-10"},{"$f":"IFERROR(IF(COUNT(Luettelo[[#This Row],[ALOITUSPÄIVÄ]]:Luettelo[[#This Row],[MÄÄRÄPÄIVÄ]])<>2,\"\",IF(OR(Luettelo[[#This Row],[TILA]]=\"Valmis\",Luettelo[[#This Row],[TILA]]=\"Peruutettu\",Luettelo[[#This Row],[TILA]]=\"Pidossa\"),\"\",Luettelo[[#This Row],[MÄÄRÄPÄIVÄ]]-TODAY())),\"\")","v":1},"Käynnissä"]

{"sheet":"Luettelotiedot","index":1,"n_rows":13,"n_cols":3,"rows_kept":13}
[null,"Luettelotiedot","Opettajan luettelo"]
[null,"Luokka"]
[null,"Toimisto"]
[null,"Tarvikkeet"]
[null,"Ostettavat"]
[null,"Puhelut"]
[null,"Uudet ideat"]
[null,"Arviot"]
[null,"Ryhmä"]
[null,"Puuttumistoimet"]
[null,"Tietokone"]
[null,"Henkilökohtainen"]
[null,"Muut"]